bitfinex-derivatives/quotes_SOLF0:USTF0_20250125
["timestamp","ask_amount","ask_price","bid_price","bid_amount"]
[1737826018997,13.51802092,255.0,254.92,3.9233]
[1737826019201,9.59582092,255.0,254.92,3.9233]
[1737826019403,0.0277809,254.99,254.93,0.0257572]
[1737826022203,3.9229,254.95,254.93,0.0257572]
[1737826022409,0.0277809,254.99,254.86,3.9241]
[1737826022611,9.59582092,255.0,254.86,3.9241]
[1737826022908,9.59582092,255.0,254.85,3.9244]
[1737826023207,9.59582092,255.0,254.86,9.59582092]
[1737826023408,3.9231,254.94,254.9,0.02506724]
[1737826024808,0.02694408,254.96,254.9,0.02506724]
[1737826025004,3.9232,254.93,254.9,0.02506724]
[1737826026909,0.02694408,254.96,254.9,0.02506724]
[1737826027314,0.02694408,254.96,254.9,3.94856724]
[1737826027511,0.02694408,254.96,254.91,9.59582092]
[1737826029112,0.02694408,254.96,254.93,3.9231]
[1737826029511,0.02694408,254.96,254.95,9.59582092]
[1737826029811,1.2598,255.08,254.95,9.59582092]
[1737826030115,2.6032,255.11,255.03,9.59582092]
[1737826030709,2.6032,255.11,255.05,3.9213]
[1737826030909,0.02703093,255.1,255.05,3.9213]
[1737826031218,0.02703093,255.1,255.04,0.02873831]
[1737826033320,3.94763093,255.1,255.04,0.02873831]
[1737826034219,3.9207,255.09,255.04,0.02873831]
[1737826035421,3.9216,255.04,254.96,3.9227]
[1737826035615,12.19902092,255.11,254.94,9.59582092]
[1737826036020,3.9216,255.04,254.96,3.9227]
[1737826036218,12.19902092,255.11,254.94,9.59582092]
[1737826036720,3.9218,255.02,255.0,0.02862634]
[1737826039022,0.02539727,255.05,255.0,0.02862634]
[1737826039211,0.02539727,255.05,255.03,9.59582092]
[1737826040119,0.02539727,255.05,255.0,0.02862634]
[1737826040319,0.02539727,255.05,255.0,3.95072634]
[1737826041016,0.02539727,255.05,255.0,0.02862634]
[1737826041922,3.9218,255.02,255.0,0.02862634]
[1737826042127,0.02539727,255.05,254.91,9.59582092]
[1737826042322,1.2903,255.01,254.91,9.59582092]
[1737826042824,3.9223,254.99,254.92,3.9232]
[1737826043120,1.2903,255.01,254.87,9.59582092]
[1737826043321,0.02664687,254.98,254.87,9.59582092]
[1737826044023,0.02664687,254.98,254.91,9.59582092]
[1737826044228,1.2903,255.01,254.91,9.59582092]
[1737826044425,0.02653901,254.97,254.91,9.59582092]
[1737826045326,0.02653901,254.97,254.95,13.51862092]
[1737826045526,1.3689,255.04,254.95,9.59582092]
[1737826045727,0.0293503,255.02,254.99,3.9222]
[1737826045927,0.0293503,255.02,254.99,9.59582092]
[1737826046428,0.0293503,255.02,255.0,3.922]
[1737826047225,0.0025766,255.02,255.0,3.922]
[1737826047622,0.0025766,255.02,255.0,19.26169813]
[1737826048528,0.0025766,255.02,255.0,3.922]
[1737826054624,0.0025766,255.02,254.98,0.02884547]
[1737826054819,0.0025766,255.02,255.01,3.9219]
[1737826055228,0.0025766,255.02,254.98,0.02884547]
[1737826055423,0.0025766,255.02,254.99,3.9221]
[1737826055822,0.0025766,255.02,254.98,0.02884547]
[1737826056920,3.922,255.01,254.98,0.02884547]
[1737826057726,3.9243766,255.02,254.98,0.02884547]
[1737826057931,0.0025766,255.02,254.98,0.02884547]
[1737826059135,0.0025766,255.02,255.0,3.922]
[1737826059529,0.0025766,255.02,254.98,0.02884547]
[1737826059736,0.0025766,255.02,255.01,3.9219]
[1737826060332,0.0025766,255.02,255.01,19.26159813]
[1737826060635,1.2619,255.17,255.01,15.33969813]
[1737826060636,1.2768,255.16,255.01,15.33969813]
[1737826060841,2.6146,255.16,255.01,15.33969813]
[1737826061733,0.02982172,255.11,255.07,3.9209]
[1737826061925,0.02982172,255.11,255.06,0.02515158]
[1737826062632,0.02982172,255.11,255.07,3.921]
[1737826062831,0.02982172,255.11,255.06,0.02515158]
[1737826063836,0.02982172,255.11,255.09,3.9206]
[1737826067731,0.02982172,255.11,255.06,0.02515158]
[1737826068334,0.02982172,255.11,255.09,3.9207]
[1737826069439,0.02982172,255.11,255.06,0.02515158]
[1737826069743,0.02982172,255.11,255.07,9.58440362]
[1737826070039,0.02982172,255.11,255.1,3.9206]
[1737826074042,0.02982172,255.11,255.07,9.58440362]
[1737826074345,0.02982172,255.11,255.09,3.9207]
[1737826078339,215.06799366,255.49,255.23,11.78]
[1737826078652,93.39395273,255.49,255.45,9.58440362]
[1737826079657,0.02976253,255.5,255.45,9.58440362]
[1737826079854,3.8843,255.63,255.49,9.58440362]
[1737826080052,3.8843,255.63,255.53,9.58440362]
[1737826080249,0.02516134,255.59,255.53,9.58440362]
[1737826080553,0.02516134,255.59,255.55,0.02645265]
[1737826082757,0.02516134,255.59,255.57,15.27805515]
[1737826084658,2.6224,255.63,255.57,15.27805515]
[1737826084855,1.3144,255.72,255.57,15.27805515]
[1737826085053,6.4944,255.78,255.61,15.27805515]
[1737826085257,2.5842,255.78,255.65,15.27805515]
[1737826085959,0.02751856,255.74,255.69,0.02999743]
[1737826086563,0.02751856,255.74,255.56,15.27805515]
[1737826086861,17.86225515,255.78,255.56,15.27805515]
[1737826087061,3.9113,255.71,255.56,15.27805515]
[1737826087259,17.86225515,255.78,255.56,15.27805515]
[1737826087463,3.9104,255.77,255.61,15.27805515]
[1737826087658,2.5842,255.78,255.61,15.27805515]
[1737826087865,0.02758416,255.7,255.64,0.02555505]
[1737826089764,0.02758416,255.7,255.53,15.27805515]
[1737826089964,15.27805515,255.75,255.53,15.27805515]
[1737826090265,2.5842,255.78,255.57,15.27805515]
[1737826090467,3.9117,255.68,255.57,15.27805515]
[1737826090960,0.02883515,255.65,255.6,0.0260809]
[1737826092759,0.02883515,255.65,255.61,19.19075515]
[1737826092958,0.02883515,255.65,255.61,15.27805515]
[1737826093366,0.02883515,255.65,255.6,0.0260809]
[1737826095060,2.64733515,255.65,255.6,0.0260809]
[1737826096463,3.9125,255.63,255.6,0.0260809]
[1737826096770,2.64733515,255.65,255.6,0.0260809]
[1737826097567,3.9125,255.63,255.6,0.0260809]
[1737826097970,2.64733515,255.65,255.53,19.19195515]
[1737826099065,3.9126,255.62,255.53,19.19195515]
[1737826099265,3.9126,255.62,255.54,3.9138]
[1737826099465,2.64733515,255.65,255.53,15.27805515]
[1737826100172,2.64733515,255.65,255.55,3.9136]
[1737826100173,6.55953515,255.65,255.55,3.9136]
[1737826100373,2.64733515,255.65,255.55,3.9136]
[1737826100974,2.64733515,255.65,255.53,15.27805515]
[1737826101466,3.9126,255.62,255.53,15.27805515]
[1737826102072,3.9126,255.62,255.54,3.9138]
[1737826102272,3.9132,255.59,255.49,15.27805515]
[1737826102474,2.64733515,255.65,255.49,15.27805515]
[1737826102475,2.6185,255.65,255.49,15.27805515]
[1737826102673,0.02619101,255.57,255.49,15.27805515]
[1737826102874,0.02619101,255.57,255.5,3.9143]
[1737826103367,0.02619101,255.57,255.49,15.27805515]
[1737826103574,3.9135,255.56,255.45,15.27805515]
[1737826103874,0.02619101,255.57,255.45,15.27805515]
[1737826104973,3.9139,255.54,255.46,3.915]
[1737826105177,0.02619101,255.57,255.45,15.27805515]
[1737826106471,0.02619101,255.57,255.48,3.9146]
[1737826106671,0.02619101,255.57,255.45,15.27805515]
[1737826108178,0.02619101,255.57,255.5,3.9144]
[1737826108470,0.02619101,255.57,255.45,15.27805515]
[1737826108675,0.02619101,255.57,255.52,3.914]
[1737826108877,3.9128,255.61,255.52,3.914]
[1737826109177,0.02648075,255.57,255.52,3.914]
[1737826110274,0.02648075,255.57,255.53,3.9139]
[1737826110476,0.02648075,255.57,255.54,9.55103602]
[1737826110673,2.6185,255.65,255.54,9.55103602]
[1737826110870,0.02732843,255.58,255.45,9.55103602]
[1737826111070,2.6185,255.65,255.57,9.55103602]
[1737826111269,9.55103602,255.75,255.57,9.55103602]
[1737826111270,3.9116,255.69,255.57,9.55103602]
[1737826111577,9.55103602,255.75,255.57,9.55103602]
[1737826111578,1.3374,255.68,255.57,9.55103602]
[1737826111774,1.3374,255.68,255.56,15.27173949]
[1737826112276,0.0254122,255.65,255.6,15.27173949]
[1737826112676,0.0254122,255.65,255.63,3.9123]
[1737826117480,0.0254122,255.65,255.64,15.27173949]
[1737826118783,0.0254122,255.65,255.63,3.9123]
[1737826119284,0.0254122,255.65,255.64,15.27173949]
[1737826120081,1.2365,255.74,255.7,3.9112]
[1737826120885,1.2365,255.74,255.64,15.27173949]
[1737826121185,0.02709063,255.72,255.66,0.02743742]
[1737826121377,0.02709063,255.72,255.67,3.9117]
[1737826121584,0.02709063,255.72,255.66,0.02743742]
[1737826122189,0.02709063,255.72,255.68,3.9117]
[1737826122483,0.02709063,255.72,255.66,0.02743742]
[1737826122685,0.02709063,255.72,255.67,3.9118]
[1737826124490,0.02709063,255.72,255.66,0.02743742]
[1737826125682,3.93819063,255.72,255.66,0.02743742]
[1737826125886,0.02709063,255.72,255.66,0.02743742]
[1737826126190,1.2397,255.71,255.66,0.02743742]
[1737826127184,15.27173949,255.7,255.51,4.73380426]
[1737826127887,1.2397,255.71,255.44,18.09173949]
[1737826127888,15.27173949,255.66,255.44,18.09173949]
[1737826128785,0.02872089,255.58,255.52,0.02861645]
[1737826131686,3.9139,255.54,255.52,0.02861645]
[1737826132390,3.9147,255.49,255.37,9.55830362]
[1737826132584,9.55830362,255.53,255.37,9.55830362]
[1737826132790,9.55830362,255.53,255.42,3.9156]
[1737826132995,9.55830362,255.53,255.37,9.55830362]
[1737826133394,9.55830362,255.53,255.39,3.9161]
[1737826133590,0.02839156,255.48,255.39,3.9161]
[1737826134095,0.02839156,255.48,255.4,3.9159]
[1737826134994,0.02839156,255.48,255.42,3.9156]
[1737826135192,0.02839156,255.48,255.37,15.30003468]
[1737826136389,0.02839156,255.48,255.4,3.9159]
[1737826136594,0.02839156,255.48,255.37,15.30003468]
[1737826136991,0.02839156,255.48,255.43,3.9155]
[1737826137286,0.02839156,255.48,255.37,15.30003468]
[1737826138295,0.02839156,255.48,255.29,15.30003468]
[1737826138492,15.30003468,255.5,255.29,15.30003468]
[1737826138693,3.9153,255.44,255.29,15.30003468]
[1737826138888,0.02968629,255.41,255.29,15.30003468]
[1737826139195,0.02968629,255.41,255.39,3.916]
[1737826140190,3.8786,255.56,255.37,15.30003468]
[1737826140392,3.8786,255.56,255.33,15.30003468]
[1737826140596,3.915,255.47,255.33,15.30003468]
[1737826141100,15.30003468,255.54,255.33,15.30003468]
[1737826141399,0.02512715,255.43,255.37,0.02808508]
[1737826141798,0.02512715,255.43,255.33,15.30003468]
[1737826141993,0.02512715,255.43,255.37,0.02849062]
[1737826142292,0.02512715,255.43,255.37,15.3285253]
[1737826142698,0.02512715,255.43,255.41,3.9158]
[1737826143898,0.02512715,255.43,255.37,0.02849062]
[1737826144606,0.02512715,255.43,255.4,3.9159]
[1737826145208,0.02512715,255.43,255.38,3.9162]
[1737826145608,0.02512715,255.43,255.37,0.02849062]
[1737826146004,0.02512715,255.43,255.37,3.94479062]
[1737826146308,0.02512715,255.43,255.37,0.02849062]
[1737826147710,3.94062715,255.43,255.37,0.02849062]
[1737826148317,0.02512715,255.43,255.37,0.02849062]
[1737826148818,0.02512715,255.43,255.39,3.916]
[1737826149016,0.02512715,255.43,255.37,0.02849062]
[1737826151120,3.94072715,255.43,255.37,3.94489062]
[1737826151517,0.02512715,255.43,255.37,0.02849062]
[1737826152419,0.02512715,255.43,255.39,3.9161]
[1737826153221,3.94062715,255.43,255.39,3.9161]
[1737826153722,0.02512715,255.43,255.37,0.02849062]
[1737826153923,3.9157,255.42,255.37,3.94479062]
[1737826154421,0.02512715,255.43,255.37,0.02849062]
[1737826155029,3.9161,255.4,255.37,0.02849062]
[1737826155327,0.02512715,255.43,255.37,0.02849062]
[1737826157723,3.94062715,255.43,255.39,3.916]
[1737826158415,0.02512715,255.43,255.37,0.02849062]
[1737826158623,3.9157,255.42,255.37,3.94479062]
[1737826158819,0.02512715,255.43,255.37,0.02849062]
[1737826159030,0.02512715,255.43,255.37,3.94489062]
[1737826159031,3.9158,255.41,255.37,3.94489062]
[1737826159919,0.02512715,255.43,255.37,0.02849062]
[1737826160628,3.9163,255.39,255.37,0.02849062]
[1737826161830,3.9159,255.41,255.37,0.02849062]
[1737826162031,3.9882,255.42,255.37,0.02849062]
[1737826163128,3.916,255.4,255.37,0.02849062]
[1737826164929,3.9158,255.41,255.37,3.94489062]
[1737826166728,3.9138,255.54,255.48,3.9146]
[1737826166926,1.3043,255.63,255.45,9.35436823]
[1737826167126,1.356,255.62,255.45,9.35436823]
[1737826167326,9.35436823,255.59,255.41,9.35436823]
[1737826167922,0.03004635,255.53,255.47,0.02617037]
[1737826168520,0.03004635,255.53,255.47,3.94097037]
[1737826169129,0.03004635,255.53,255.47,0.02617037]
[1737826169326,0.03004635,255.53,255.48,3.9147]
[1737826169729,0.03004635,255.53,255.47,0.02617037]
[1737826169929,0.03004635,255.53,255.5,3.9143]
[1737826171030,0.03004635,255.53,255.51,3.9142]
[1737826176230,0.03004635,255.53,255.52,3.9141]
[1737826177229,11.86856823,255.71,255.49,9.35436823]
[1737826177428,3.9121,255.66,255.58,3.9131]
[1737826177628,1.3017,255.7,255.55,9.35436823]
[1737826178032,3.9118,255.67,255.59,3.913]
[1737826178331,9.35436823,255.75,255.59,9.35436823]
[1737826178537,0.02876112,255.66,255.6,0.02696707]
[1737826178736,0.02876112,255.66,255.62,3.9125]
[1737826179029,0.02876112,255.66,255.6,0.02696707]
[1737826179630,0.02876112,255.66,255.61,3.9126]
[1737826179832,0.02876112,255.66,255.6,0.02696707]
[1737826180838,3.94076112,255.66,255.6,0.02696707]
[1737826181335,0.02876112,255.66,255.61,3.9127]
[1737826181731,0.02876112,255.66,255.6,0.02696707]
[1737826182843,3.9122,255.65,255.6,0.02696707]
[1737826184738,3.9127,255.61,255.6,0.02696707]
[1737826186744,3.9126,255.63,255.6,0.02696707]
[1737826187146,0.02876112,255.66,255.6,0.02696707]
[1737826187440,3.9122,255.65,255.6,0.02696707]
[1737826187645,3.9122,255.65,255.6,3.93986707]
[1737826188038,3.9123,255.64,255.6,0.02696707]
[1737826188842,3.9127,255.61,255.6,0.02696707]
[1737826189249,0.02876112,255.66,255.5,9.35436823]
[1737826189543,9.35436823,255.67,255.46,9.35436823]
[1737826189746,9.35436823,255.67,255.5,9.35436823]
[1737826190449,0.02998241,255.61,255.56,0.02770872]
[1737826192350,0.02998241,255.61,255.59,3.913]
[1737826193442,0.02998241,255.61,255.57,3.9132]
[1737826194341,0.02998241,255.61,255.56,0.02770872]
[1737826194547,0.02998241,255.61,255.58,3.9132]
[1737826200254,0.02998241,255.61,255.6,3.9129]
[1737826202258,5.98205515,255.76,255.63,3.9124]
[1737826202453,5.98205515,255.76,255.65,5.98205515]
[1737826203350,0.02625618,255.73,255.69,3.9114]
[1737826204260,0.02625618,255.73,255.68,0.0264563]
[1737826204261,3.9112,255.71,255.68,0.0264563]
[1737826204861,3.93735618,255.73,255.68,0.0264563]
[1737826205058,0.02625618,255.73,255.68,0.0264563]
[1737826206055,0.02625618,255.73,255.71,3.9112]
[1737826206758,0.02625618,255.73,255.68,0.0264563]
[1737826207258,3.9114,255.7,255.68,0.0264563]
[1737826207454,0.02625618,255.73,255.57,5.3553]
[1737826207659,1.2668,255.72,255.57,2.5953]
[1737826207856,3.9121,255.66,255.52,9.34297186]
[1737826208057,9.34297186,255.71,255.55,3.9136]
[1737826208257,9.34297186,255.71,255.52,9.34297186]
[1737826208657,0.02524734,255.64,255.59,0.02770508]
[1737826209257,3.9128,255.61,255.47,9.34297186]
[1737826209462,9.34297186,255.63,255.43,9.34297186]
[1737826209760,1.3533,255.6,255.43,9.34297186]
[1737826210160,1.3533,255.6,255.48,9.34297186]
[1737826210362,1.3533,255.6,255.54,3.9137]
[1737826210663,0.02929647,255.57,255.51,0.02954509]
[1737826211157,0.02929647,255.57,255.53,3.9139]
[1737826212757,0.02929647,255.57,255.52,9.34297186]
[1737826213867,0.02929647,255.57,255.55,3.9136]
[1737826215059,0.02929647,255.57,255.52,9.34297186]
[1737826215462,0.02929647,255.57,255.51,0.02954509]
[1737826215861,0.02929647,255.57,255.52,9.34297186]
[1737826216365,0.02929647,255.57,255.55,3.9136]
[1737826216561,1.2759,255.7,255.56,9.34297186]
[1737826216766,1.2601,255.78,255.6,9.34297186]
[1737826216963,3.9108,255.74,255.63,3.9123]
[1737826217169,3.9108,255.74,255.6,9.34297186]
[1737826217563,1.2601,255.78,255.6,9.34297186]
[1737826217764,0.02934762,255.69,255.64,0.02524399]
[1737826219165,9.34297186,255.9,255.68,9.34297186]
[1737826219468,9.34297186,255.9,255.79,3.9099]
[1737826219860,9.34297186,255.9,255.72,9.34297186]
[1737826220265,0.02530914,255.84,255.78,0.02636707]
[1737826221474,9.34297186,255.99,255.81,9.34297186]
[1737826221771,3.9075,255.95,255.81,13.25267186]
[1737826222171,9.34297186,255.99,255.81,9.34297186]
[1737826222565,0.02512768,255.93,255.87,0.02822822]
[1737826222864,3.9085,255.89,255.87,0.02822822]
[1737826223366,1.2517,255.92,255.87,0.02822822]
[1737826223572,3.9082,255.91,255.87,0.02822822]
[1737826223973,1.2517,255.92,255.87,0.02822822]
[1737826224373,3.9086,255.88,255.87,0.02822822]
[1737826226277,3.9095,255.83,255.75,9.33240056]
[1737826226478,3.9095,255.83,255.71,9.33240056]
[1737826226778,2.6625,255.87,255.73,3.9108]
[1737826227478,3.9097,255.81,255.77,0.02899037]
[1737826228174,0.02823342,255.83,255.67,9.33240056]
[1737826228373,0.02823342,255.83,255.5,14.17968791]
[1737826228374,9.33240056,255.81,255.62,9.33240056]
[1737826228679,9.33240056,255.77,255.58,9.33240056]
[1737826229375,14.4425,255.87,255.65,0.02817525]
[1737826229376,0.02688823,255.7,255.65,0.02817525]
[1737826229574,0.02688823,255.7,255.62,9.33240056]
[1737826229784,9.33240056,255.81,255.62,9.33240056]
[1737826229982,0.02642481,255.69,255.63,0.02618395]
[1737826230383,9.34235014,255.81,255.62,9.34235014]
[1737826230577,0.02915174,255.69,255.63,0.02485255]
[1737826230882,3.911,255.73,255.62,9.34235014]
[1737826231177,0.02553307,255.69,255.63,0.02741154]
[1737826231774,3.9119,255.67,255.63,0.02741154]
[1737826231979,0.02553307,255.69,255.63,0.02741154]
[1737826234782,0.02553307,255.69,255.65,3.912]
[1737826235375,0.02553307,255.69,255.66,3.9119]
[1737826235584,0.02553307,255.69,255.63,0.02741154]
[1737826235987,0.02553307,255.69,255.67,3.9118]
[1737826236479,0.02553307,255.69,255.63,0.02741154]
[1737826237084,0.02553307,255.69,255.63,3.93981154]
[1737826237282,0.02553307,255.69,255.63,0.02741154]
[1737826237983,0.02553307,255.69,255.66,3.9119]
[1737826238386,0.02553307,255.69,255.63,0.02741154]
[1737826239082,0.02553307,255.69,255.67,3.9118]
[1737826240682,0.02553307,255.69,255.68,3.9117]
[1737826242180,3.91,255.79,255.66,9.34235014]
[1737826242386,3.91,255.79,255.73,3.9109]
[1737826242586,3.91,255.79,255.66,9.34235014]
[1737826242986,3.9103,255.77,255.66,9.34235014]
[1737826243483,0.02855688,255.74,255.71,3.9111]
[1737826243793,0.02855688,255.74,255.69,0.02761812]
[1737826243987,0.02855688,255.74,255.73,3.9109]
[1737826245388,0.02855688,255.74,255.69,0.02761812]
[1737826246388,0.02855688,255.74,255.73,3.9109]
[1737826247684,9.34235014,255.89,255.7,9.34235014]
[1737826247890,9.34235014,255.89,255.82,3.9094]
[1737826247891,3.9085,255.89,255.82,3.9094]
[1737826248490,9.34235014,255.88,255.69,9.34235014]
[1737826248686,11.78,255.91,255.54,2.82]
[1737826248687,9.34235014,255.84,255.65,9.34235014]
[1737826248892,2.6036,255.83,255.65,9.34235014]
[1737826249095,0.02671,255.81,255.76,0.02769445]
[1737826250186,3.9102,255.78,255.76,0.02769445]
[1737826250994,3.9105,255.76,255.69,3.9115]
[1737826251394,2.6036,255.83,255.65,9.34235014]
[1737826252195,0.02665216,255.77,255.71,0.02864422]
[1737826252996,0.02665216,255.77,255.73,3.9108]
[1737826253697,0.02665216,255.77,255.74,3.9107]
[1737826255997,0.02665216,255.77,255.71,0.02864422]
[1737826257091,0.02665216,255.77,255.72,3.9109]
[1737826257292,0.02665216,255.77,255.71,0.02864422]
[1737826257493,5.216e-05,255.77,255.73,9.34235014]
[1737826257693,9.34235014,255.96,255.73,9.34235014]
[1737826257890,1.3231,255.95,255.77,9.34235014]
[1737826258092,3.9091,255.85,255.73,9.34235014]
[1737826258297,9.34235014,255.92,255.75,3.9105]
[1737826258501,21.12235014,255.92,255.75,3.9105]
[1737826258693,21.12235014,255.92,255.73,9.34235014]
[1737826258898,0.02772525,255.86,255.81,0.03004663]
[1737826259300,3.9095,255.82,255.81,0.03004663]
[1737826259597,0.02772525,255.86,255.81,0.03004663]
[1737826261405,3.9102,255.78,255.71,3.9111]
[1737826261703,9.34235014,255.83,255.65,9.34235014]
[1737826262604,0.02561131,255.77,255.71,0.02812575]
[1737826263001,0.02561131,255.77,255.71,3.93922575]
[1737826263303,0.02561131,255.77,255.71,0.02812575]
[1737826264406,3.9108,255.74,255.71,0.02812575]
[1737826264704,0.02561131,255.77,255.71,0.02812575]
[1737826265105,0.02561131,255.77,255.63,3.9123]
[1737826265602,3.9119,255.67,255.61,3.9127]
[1737826265812,21.12235014,255.75,255.57,9.34235014]
[1737826266004,9.34235014,255.71,255.54,1.3462]
[1737826266199,3.9125,255.63,255.53,10.64325014]
[1737826266507,0.02752316,255.65,255.6,0.02838192]
[1737826266703,3.93972316,255.65,255.6,0.02838192]
[1737826266905,0.02752316,255.65,255.6,0.02838192]
[1737826268806,0.02752316,255.65,255.63,3.9124]
[1737826269106,9.34235014,255.83,255.61,9.34235014]
[1737826269306,3.911,255.73,255.64,3.9122]
[1737826269497,2.5201,255.82,255.57,9.34235014]
[1737826269498,9.34235014,255.75,255.57,9.34235014]
[1737826269703,9.34235014,255.75,255.53,9.34235014]
[1737826270007,9.34235014,255.75,255.59,3.913]
[1737826270202,0.0255686,255.67,255.61,0.02564042]
[1737826270908,3.9123,255.64,255.61,0.02564042]
[1737826271608,3.9121,255.66,255.61,0.02564042]
[1737826271803,0.0255686,255.67,255.61,0.02564042]
[1737826272405,0.0255686,255.67,255.65,3.912]
[1737826273904,0.0255686,255.67,255.61,0.02564042]
[1737826275606,3.912,255.66,255.61,0.02564042]
[1737826276808,0.0255686,255.67,255.48,9.34235014]
[1737826277014,3.9138,255.54,255.44,9.34235014]
[1737826277611,3.9138,255.54,255.45,3.9151]
[1737826278011,0.02788083,255.52,255.47,0.02786915]
[1737826279109,0.02788083,255.52,255.47,3.94266915]
[1737826279512,0.02788083,255.52,255.47,0.02786915]
[1737826282317,0.02788083,255.52,255.49,3.9145]
[1737826282517,0.02788083,255.52,255.47,0.02786915]
[1737826282817,0.02788083,255.52,255.49,3.9145]
[1737826283619,0.02788083,255.52,255.47,0.02786915]
[1737826284122,3.9144,255.5,255.47,0.02786915]
[1737826284416,0.02788083,255.52,255.47,0.02786915]
[1737826284617,3.94208083,255.52,255.47,0.02786915]
[1737826284811,0.02788083,255.52,255.47,0.02786915]
[1737826285214,0.02788083,255.52,255.49,3.9145]
[1737826285409,0.02788083,255.52,255.47,0.02786915]
[1737826285617,3.9146,255.49,255.47,0.02786915]
[1737826285820,0.02788083,255.52,255.47,0.02786915]
[1737826286319,3.9144,255.5,255.47,0.02786915]
[1737826286521,0.02788083,255.52,255.47,0.02786915]
[1737826287123,3.9146,255.49,255.47,0.02786915]
[1737826287717,0.02788083,255.52,255.36,18.88376806]
[1737826287917,11.78,255.59,255.36,18.88376806]
[1737826288317,11.78,255.59,255.44,3.9153]
[1737826288520,26.75453583,255.6,255.36,18.88376806]
[1737826288912,0.02563316,255.51,255.45,0.02927012]
[1737826290020,3.9149,255.47,255.45,0.02927012]
[1737826290918,3.9157,255.42,255.36,3.90923223]
[1737826291115,2.6065,255.5,255.36,3.90923223]
[1737826291521,3.9158,255.41,255.36,7.82573223]
[1737826292220,3.9161,255.39,255.36,3.90923223]
[1737826292822,3.94282966,255.41,255.36,3.90923223]
[1737826293121,0.02692966,255.41,255.36,3.90923223]
[1737826293317,3.9163,255.38,255.26,14.97453583]
[1737826293519,0.02692966,255.41,255.26,14.97453583]
[1737826293824,0.02722314,255.36,255.26,14.97453583]
[1737826295328,3.9168,255.35,255.26,14.97453583]
[1737826295525,3.9168,255.35,255.23,1.2672]
[1737826295935,0.02722314,255.36,255.23,1.2672]
[1737826296532,0.02722314,255.36,255.21,14.97453583]
[1737826298133,3.9172,255.32,255.25,3.9182]
[1737826298633,0.02722314,255.36,255.21,14.97453583]
[1737826298840,1.3178,255.44,255.21,14.97453583]
[1737826299035,0.02949838,255.31,255.21,14.97453583]
[1737826299739,0.02949838,255.31,255.3,3.9175]
[1737826299942,0.02949838,255.31,255.21,14.97453583]
[1737826301642,0.02949838,255.31,255.3,3.9175]
[1737826301843,0.02949838,255.31,255.26,9.36851201]
[1737826302142,0.02949838,255.31,255.22,9.36851201]
[1737826302733,0.02949838,255.31,255.25,3.9183]
[1737826303336,0.02949838,255.31,255.22,9.36851201]
[1737826303739,0.02949838,255.31,255.18,9.36851201]
[1737826303942,3.9173,255.32,255.23,3.9185]
[1737826304143,0.02959187,255.27,255.18,9.36851201]
[1737826304841,0.02959187,255.27,255.25,3.9182]
[1737826305539,9.187e-05,255.27,255.26,9.36851201]
[1737826307041,9.187e-05,255.27,255.25,3.9182]
[1737826307241,9.187e-05,255.27,255.24,3.9184]
[1737826307938,9.187e-05,255.27,255.25,3.9182]
[1737826309252,9.187e-05,255.27,255.26,9.36851201]
[1737826309738,9.187e-05,255.27,255.26,13.28661201]
[1737826312944,9.187e-05,255.27,255.23,0.02867492]
[1737826312945,9.187e-05,255.27,255.25,3.9182]
[1737826313145,9.187e-05,255.27,255.23,0.02867492]
[1737826313646,9.187e-05,255.27,255.26,3.9181]
[1737826314348,9.187e-05,255.27,255.24,3.9183]
[1737826314848,9.187e-05,255.27,255.23,0.02867492]
[1737826315051,9.187e-05,255.27,255.25,3.9183]
[1737826315249,9.187e-05,255.27,255.23,0.02867492]
[1737826315649,9.187e-05,255.27,255.26,3.9181]
[1737826318749,9.187e-05,255.27,255.24,3.9183]
[1737826320446,9.187e-05,255.27,255.23,0.02867492]
[1737826320950,3.9183,255.25,255.23,0.02867492]
[1737826321649,3.91819187,255.27,255.23,0.02867492]
[1737826321855,9.187e-05,255.27,255.23,0.02867492]
[1737826322451,9.187e-05,255.27,255.24,3.9183]
[1737826322647,9.187e-05,255.27,255.23,0.02867492]
[1737826323149,9.187e-05,255.27,255.25,3.9182]
[1737826323356,9.187e-05,255.27,255.23,0.02867492]
[1737826324447,9.187e-05,255.27,255.26,3.9181]
[1737826332560,9.187e-05,255.27,255.25,3.9182]
[1737826333060,9.187e-05,255.27,255.26,3.9181]
[1737826338165,4.0226,255.4,255.35,3.9167]
[1737826338466,4.0226,255.4,255.26,9.36851201]
[1737826338665,4.0226,255.4,255.24,2.6145]
[1737826338864,3.9163,255.38,255.31,3.9172]
[1737826339060,13.39111201,255.4,255.22,9.36851201]
[1737826339367,0.02857522,255.37,255.32,0.02698077]
[1737826339862,3.917,255.33,255.32,0.02698077]